bitfinex-derivatives/quotes_BTCF0:USTF0_20251030
["timestamp","ask_amount","ask_price","bid_price","bid_amount"]
[1761850369568,1.15813438,107230.0,107220.0,0.003]
[1761850370068,1.25808378,107230.0,107220.0,0.003]
[1761850370271,0.19588151,107210.0,107200.0,0.01288]
[1761850370566,1.09229952,107210.0,107200.0,0.01288]
[1761850370777,1.09229952,107210.0,107200.0,0.03569]
[1761850371163,1.09229952,107210.0,107200.0,0.05815]
[1761850371363,1.19224892,107210.0,107200.0,0.05815]
[1761850371763,1.09229952,107210.0,107200.0,0.06115]
[1761850372166,1.09229952,107210.0,107200.0,0.25703151]
[1761850373171,1.09229952,107210.0,107200.0,0.26203151]
[1761850374471,1.09229952,107210.0,107200.0,0.06615]
[1761850375369,1.09229952,107210.0,107200.0,0.26203151]
[1761850376471,1.09229952,107210.0,107200.0,0.06615]
[1761850376769,1.09229952,107210.0,107200.0,0.26203151]
[1761850378170,1.09229952,107210.0,107200.0,0.06615]
[1761850378371,1.09229952,107210.0,107200.0,0.26203151]
[1761850379178,0.73149952,107210.0,107200.0,0.26203151]
[1761850379374,0.40849952,107210.0,107200.0,0.62283151]
[1761850379574,0.34561801,107210.0,107200.0,0.81871302]
[1761850379869,0.04261801,107210.0,107200.0,0.81871302]
[1761850380175,0.04261801,107210.0,107200.0,0.42695]
[1761850380376,0.04261801,107210.0,107200.0,0.62283151]
[1761850380568,0.02261801,107210.0,107200.0,0.62283151]
[1761850380767,0.6838,107220.0,107210.0,0.05711]
[1761850381069,0.82155296,107220.0,107210.0,0.25299151]
[1761850381264,1.05523447,107220.0,107210.0,0.01284]
[1761850381468,1.05523447,107220.0,107200.0,0.57756151]
[1761850381469,1.4033211,107220.0,107200.0,0.62183151]
[1761850381673,0.19588151,107210.0,107200.0,0.62183151]
[1761850381872,0.25855296,107210.0,107200.0,0.42595]
[1761850382272,0.25855296,107210.0,107200.0,0.42295]
[1761850382879,0.53855296,107210.0,107200.0,0.04369]
[1761850383474,0.53855296,107210.0,107200.0,0.03869]
[1761850384474,0.53855296,107210.0,107200.0,0.03569]
[1761850386274,0.89935296,107210.0,107200.0,0.03569]
[1761850386473,0.89935296,107210.0,107190.0,0.05732]
[1761850386784,0.71476302,107200.0,107180.0,0.61400151]
[1761850386982,0.19588151,107190.0,107180.0,0.61400151]
[1761850387184,0.23588151,107190.0,107180.0,0.61400151]
[1761850387377,0.24814911,107190.0,107180.0,0.61400151]
[1761850387578,0.24814911,107190.0,107180.0,0.41812]
[1761850387779,0.27081459,107190.0,107180.0,0.61400151]
[1761850388172,0.27081459,107190.0,107180.0,0.41812]
[1761850388374,0.17081459,107190.0,107180.0,0.61600151]
[1761850388577,0.17081459,107190.0,107180.0,0.61900151]
[1761850389387,0.80161459,107190.0,107180.0,0.04086]
[1761850389584,0.17081459,107190.0,107180.0,0.06232]
[1761850389779,0.64156399,107190.0,107180.0,0.005]
[1761850390085,0.90156399,107190.0,107180.0,0.005]
[1761850390289,1.00156399,107190.0,107180.0,0.005]
[1761850390593,1.1974455,107190.0,107180.0,0.005]
[1761850391178,1.1974455,107190.0,107150.0,0.51781]
[1761850391179,0.58764453,107180.0,107150.0,0.51781]
[1761850391386,0.75256302,107160.0,107150.0,0.13555]
[1761850391687,0.68346548,107160.0,107150.0,0.15701]
[1761850391989,1.0752285,107160.0,107150.0,0.15701]
[1761850392690,1.0752285,107160.0,107150.0,0.15801]
[1761850393292,0.68346548,107160.0,107150.0,0.15801]
[1761850394290,0.6608,107160.0,107150.0,0.15801]
[1761850394692,0.90598788,107160.0,107150.0,0.15801]
[1761850394992,0.98095614,107160.0,107150.0,0.11374]
[1761850395192,0.98095614,107160.0,107150.0,0.13655]
[1761850395593,0.98095614,107160.0,107150.0,0.15949]
[1761850396185,0.73576826,107160.0,107150.0,0.15949]
[1761850396385,0.75835909,107160.0,107150.0,0.15949]
[1761850396692,0.37314242,107190.0,107180.0,0.02288]
[1761850396893,0.74618242,107190.0,107180.0,0.05846]
[1761850397691,0.9913703,107190.0,107170.0,0.03552]
[1761850397888,1.36892257,107190.0,107170.0,0.05846]
[1761850398290,1.27197317,107190.0,107170.0,0.05846]
[1761850398790,0.60598788,107180.0,107170.0,0.01264]
[1761850398997,0.91859075,107180.0,107170.0,0.01264]
[1761850399388,0.67340287,107180.0,107170.0,0.01264]
[1761850399997,0.67340287,107180.0,107170.0,0.05846]
[1761850400299,0.91859075,107180.0,107170.0,0.01264]
[1761850400800,0.92159075,107180.0,107170.0,0.05846]
[1761850401391,1.02154015,107180.0,107160.0,0.41908]
[1761850401597,0.32316,107170.0,107160.0,0.41908]
[1761850401799,0.37316,107170.0,107160.0,0.41908]
[1761850403199,0.65585809,107170.0,107160.0,0.05828]
[1761850404898,0.65785809,107170.0,107160.0,0.05828]
[1761850405200,0.65785809,107170.0,107160.0,0.41908]
[1761850405398,0.65785809,107170.0,107160.0,0.3608]
[1761850405603,0.65785809,107170.0,107160.0,0.05869]
[1761850405903,1.26384597,107170.0,107150.0,0.13587]
[1761850406098,0.60598788,107160.0,107150.0,0.15838]
[1761850406303,0.4608,107160.0,107150.0,0.15838]
[1761850406692,0.6408,107160.0,107150.0,0.15838]
[1761850406993,0.66348476,107160.0,107150.0,0.15838]
[1761850407402,0.73922932,107160.0,107150.0,0.15838]
[1761850408901,0.37842932,107160.0,107150.0,0.15838]
[1761850409096,0.73922932,107160.0,107150.0,0.15838]
[1761850410001,0.9844172,107160.0,107150.0,0.13587]
[1761850410303,0.9844172,107160.0,107150.0,0.0999]
[1761850411600,1.0871666,107160.0,107150.0,0.0999]
[1761850412508,1.11225323,107160.0,107150.0,0.0999]
[1761850412803,1.01230383,107160.0,107150.0,0.0999]
[1761850413601,1.11225323,107160.0,107150.0,0.0999]
[1761850415112,1.00950383,107160.0,107150.0,0.13608]
[1761850415307,1.00950383,107160.0,107150.0,0.11295]
[1761850415603,1.00950383,107160.0,107150.0,0.0999]
[1761850416004,1.11225323,107160.0,107150.0,0.0999]
[1761850416702,1.39088995,107160.0,107150.0,0.0999]
[1761850416897,1.39088995,107160.0,107130.0,0.03618]
[1761850417210,0.60598788,107140.0,107120.0,0.41949]
[1761850417410,0.56834788,107130.0,107120.0,0.41949]
[1761850417599,0.64103264,107130.0,107120.0,0.41949]
[1761850418202,0.39584476,107130.0,107120.0,0.41949]
[1761850418704,0.39584476,107130.0,107120.0,0.42349]
[1761850418705,0.40816147,107130.0,107120.0,0.42349]
[1761850419210,0.40816147,107130.0,107120.0,0.42549]
[1761850419398,0.65334935,107130.0,107120.0,0.42549]
[1761850419810,0.40816147,107130.0,107120.0,0.42549]
[1761850420908,0.65334935,107130.0,107120.0,0.06469]
[1761850422495,0.69816147,107130.0,107120.0,0.06469]
[1761850422700,1.30414935,107130.0,107120.0,0.06469]
[1761850423397,1.25525596,107130.0,107120.0,0.06469]
[1761850423601,1.55149985,107130.0,107120.0,0.01905]
[1761850423806,1.55149985,107130.0,107120.0,0.006]
[1761850425106,1.55149985,107130.0,107120.0,0.004]
[1761850425310,1.55149985,107130.0,107120.0,0.005]
[1761850425508,1.35523232,107130.0,107120.0,0.06369]
[1761850425715,0.89448292,107130.0,107120.0,0.06369]
[1761850425907,1.25528292,107130.0,107120.0,0.06369]
[1761850426314,1.25528292,107130.0,107120.0,0.06169]
[1761850426517,0.89448292,107130.0,107120.0,0.06169]
[1761850426812,1.15528292,107130.0,107120.0,0.06169]
[1761850427115,0.89443232,107130.0,107120.0,0.06169]
[1761850427310,0.79448292,107130.0,107120.0,0.06169]
[1761850427809,1.15528292,107130.0,107120.0,0.06169]
[1761850429611,1.25523232,107130.0,107120.0,0.06169]
[1761850430706,0.79448292,107130.0,107120.0,0.06169]
[1761850431012,0.59816147,107130.0,107120.0,0.06169]
[1761850431204,0.79448292,107130.0,107120.0,0.06169]
[1761850432017,0.59816147,107130.0,107120.0,0.06169]
[1761850432314,0.79448292,107130.0,107120.0,0.06169]
[1761850433204,1.15528292,107130.0,107120.0,0.06169]
[1761850433409,0.95896147,107130.0,107120.0,0.06169]
[1761850433810,0.81528292,107130.0,107120.0,0.06169]
[1761850434022,0.86528292,107130.0,107120.0,0.06169]
[1761850434317,0.50448292,107130.0,107120.0,0.06169]
[1761850434516,0.86528292,107130.0,107120.0,0.06169]
[1761850435817,0.86528292,107130.0,107120.0,0.02613]
[1761850436120,0.86528292,107130.0,107120.0,0.0396]
[1761850436715,0.86528292,107130.0,107120.0,0.06076]
[1761850437219,0.49448292,107130.0,107120.0,0.06076]
[1761850437719,0.95523232,107130.0,107120.0,0.06076]
[1761850438825,1.44155377,107130.0,107120.0,0.003]
[1761850439015,1.4766404,107130.0,107120.0,0.003]
[1761850439214,1.46432369,107130.0,107120.0,0.003]
[1761850440227,1.45432369,107130.0,107120.0,0.003]
[1761850440421,1.48777253,107130.0,107120.0,0.003]
[1761850441922,1.45432369,107130.0,107120.0,0.003]
[1761850442325,1.46432369,107130.0,107120.0,0.003]
[1761850442524,1.4726859,107130.0,107120.0,0.003]
[1761850442719,1.4626859,107130.0,107120.0,0.003]
[1761850443626,1.4626859,107130.0,107120.0,0.001]
[1761850444019,2.0626859,107130.0,107120.0,0.001]
[1761850444622,2.0626859,107130.0,107110.0,0.05601]
[1761850444823,0.58214538,107120.0,107110.0,0.05601]
[1761850445036,0.93483014,107120.0,107110.0,0.05601]
[1761850445926,0.93483014,107120.0,107110.0,0.05901]
[1761850446131,0.02268476,107120.0,107110.0,0.25533145]
[1761850446321,0.39424884,107140.0,107130.0,0.05601]
[1761850446322,0.41927277,107140.0,107130.0,0.05601]
[1761850446522,0.09779035,107140.0,107130.0,0.05601]
[1761850446831,0.07276642,107140.0,107130.0,0.25233145]
[1761850447025,0.05584145,107140.0,107130.0,0.61593145]
[1761850447432,0.03584145,107140.0,107130.0,0.61593145]
[1761850448321,0.02502393,107160.0,107150.0,0.05601]
[1761850448525,0.04275619,107160.0,107150.0,0.25233145]
[1761850448826,0.69485585,107170.0,107150.0,0.65601]
[1761850449033,0.7676115,107170.0,107160.0,0.05601]
[1761850449234,0.78181958,107170.0,107160.0,0.05601]
[1761850449533,0.75679565,107170.0,107160.0,0.05601]
[1761850449925,0.71983261,107170.0,107160.0,0.05601]
[1761850450231,1.46876223,107170.0,107160.0,0.05601]
[1761850450432,1.05785654,107170.0,107160.0,0.05601]
[1761850451031,1.6539267,107170.0,107150.0,0.05601]
[1761850451330,0.77270569,107160.0,107150.0,0.05601]
[1761850451533,1.12772962,107160.0,107150.0,0.03485]
[1761850451931,1.12672962,107160.0,107150.0,0.03485]
[1761850452316,1.22667902,107160.0,107150.0,0.03485]
[1761850452721,1.22767902,107160.0,107150.0,0.01347]
[1761850453132,1.23267902,107160.0,107150.0,0.03485]
[1761850454136,1.23267902,107160.0,107150.0,0.01347]
[1761850454833,1.23467902,107160.0,107150.0,0.01347]
[1761850455729,1.23467902,107160.0,107150.0,0.05747]
[1761850456326,1.20965509,107160.0,107150.0,0.05747]
[1761850458428,1.10970569,107160.0,107150.0,0.05747]
[1761850458828,0.6988,107160.0,107150.0,0.05747]
[1761850459734,1.10970569,107160.0,107150.0,0.05747]
[1761850460228,0.6988,107160.0,107150.0,0.05747]
[1761850460927,0.72123247,107160.0,107150.0,0.05747]
[1761850461628,0.71823247,107160.0,107150.0,0.05747]
[1761850462132,0.43823247,107160.0,107150.0,0.05747]
[1761850462333,0.43523247,107160.0,107150.0,0.05747]
[1761850462528,0.43823247,107160.0,107150.0,0.05747]
[1761850463431,0.33743247,107160.0,107150.0,0.41827]
[1761850463630,0.315,107160.0,107150.0,0.41827]
[1761850463830,0.315,107160.0,107150.0,0.05747]
[1761850464329,0.33743077,107160.0,107150.0,0.05747]
[1761850464525,0.33743077,107160.0,107150.0,0.41827]
[1761850464835,0.33743077,107160.0,107150.0,0.05747]
[1761850465232,0.314,107160.0,107150.0,0.05747]
[1761850465631,0.6748,107160.0,107150.0,0.05747]
[1761850466028,0.6748,107160.0,107150.0,0.03636]
[1761850466226,1.00713559,107160.0,107150.0,0.05783]
[1761850466936,0.5962299,107160.0,107150.0,0.05783]
[1761850468339,0.53616,107160.0,107150.0,0.41863]
[1761850469244,0.02544461,107160.0,107150.0,0.42143]
[1761850469534,0.003,107160.0,107150.0,0.71085432]
[1761850469734,0.01303696,107170.0,107160.0,0.05664]
[1761850469943,0.32312,107180.0,107170.0,0.05618]
[1761850470141,0.35868427,107180.0,107170.0,0.41698]
[1761850470436,0.35867862,107180.0,107170.0,0.05618]
[1761850471026,0.36167862,107180.0,107170.0,0.05618]
[1761850471229,0.05855862,107180.0,107170.0,0.05618]
[1761850472034,0.13281877,107180.0,107170.0,0.05618]
[1761850472243,0.13781877,107180.0,107170.0,0.05618]
[1761850473539,0.39861877,107180.0,107170.0,0.03391]
[1761850473743,1.09937802,107180.0,107170.0,0.03391]
[1761850473941,1.09937802,107180.0,107170.0,0.05618]
[1761850474538,1.1125063,107180.0,107170.0,0.05618]
[1761850474743,1.2124557,107180.0,107170.0,0.05618]
[1761850475239,0.80169645,107180.0,107170.0,0.05618]
[1761850475446,0.70174705,107180.0,107170.0,0.05618]
[1761850476336,0.72677098,107180.0,107170.0,0.05618]
[1761850476737,1.13753023,107180.0,107170.0,0.05618]
[1761850477939,1.13753023,107180.0,107170.0,0.01266]
[1761850478139,0.72677098,107180.0,107160.0,0.05618]
[1761850478349,0.73383925,107170.0,107160.0,0.05618]
[1761850478536,1.07383925,107170.0,107160.0,0.05618]
[1761850478936,0.66308,107170.0,107160.0,0.05618]
[1761850479143,0.7630294,107170.0,107160.0,0.05618]
[1761850480437,0.66308,107170.0,107160.0,0.05618]
[1761850481838,0.66408,107170.0,107160.0,0.05618]
[1761850482149,0.001,107170.0,107160.0,0.83053925]
[1761850482650,0.001,107170.0,107160.0,0.41698]
[1761850482843,0.001,107170.0,107160.0,0.41978]
[1761850483041,0.001,107170.0,107160.0,0.41698]
[1761850483445,0.001,107170.0,107160.0,0.41798]
[1761850483942,0.001,107170.0,107160.0,0.41698]
[1761850484335,0.001,107170.0,107160.0,0.05618]
[1761850484538,0.001,107170.0,107160.0,0.41698]
[1761850484734,0.02,107170.0,107160.0,0.41698]
[1761850485145,0.40674705,107180.0,107170.0,0.05618]
[1761850485340,0.70674705,107180.0,107170.0,0.05618]
[1761850485542,0.72912048,107180.0,107170.0,0.05618]
[1761850486441,0.75414441,107180.0,107170.0,0.05618]
[1761850486649,0.75514441,107180.0,107170.0,0.05618]
[1761850487237,0.39434441,107180.0,107170.0,0.05618]
[1761850487442,0.39734441,107180.0,107170.0,0.05618]
[1761850487644,0.39734441,107180.0,107170.0,0.41698]
[1761850488251,0.39534441,107180.0,107170.0,0.41698]
[1761850488747,0.39534441,107180.0,107170.0,0.05618]
[1761850488956,0.39334441,107180.0,107170.0,0.05618]
[1761850489150,0.39434441,107180.0,107170.0,0.05618]
[1761850489545,0.75514441,107180.0,107170.0,0.05618]
[1761850490451,0.39434441,107180.0,107170.0,0.05618]
[1761850490753,0.39434441,107180.0,107170.0,0.41698]
[1761850490957,0.29434441,107180.0,107170.0,0.05618]
[1761850491950,0.65514441,107180.0,107170.0,0.05618]
[1761850493057,0.66866484,107180.0,107170.0,0.05618]
[1761850494366,0.91374613,107180.0,107170.0,0.05618]
[1761850494564,0.66866484,107180.0,107170.0,0.05618]
[1761850494766,0.91374613,107180.0,107170.0,0.05618]
[1761850495066,0.98742414,107180.0,107170.0,0.05618]
[1761850495266,1.13453679,107180.0,107170.0,0.05618]
[1761850495765,1.23448619,107180.0,107170.0,0.05618]
[1761850496364,1.26793503,107180.0,107160.0,0.05857]
[1761850496569,0.70886393,107170.0,107160.0,0.05857]
[1761850496760,1.25733433,107170.0,107160.0,0.05857]
[1761850498763,1.25733433,107170.0,107160.0,0.05957]
[1761850501274,1.06123736,107170.0,107160.0,0.05957]
[1761850501571,1.25733433,107170.0,107160.0,0.05957]
[1761850505672,1.35728373,107170.0,107160.0,0.001]
[1761850505978,1.57180561,107170.0,107140.0,0.05938]
[1761850506275,0.55689697,107150.0,107140.0,0.05938]
[1761850506572,1.2023104,107150.0,107140.0,0.05938]
[1761850507473,0.8415104,107150.0,107140.0,0.05938]
[1761850507976,0.8415104,107150.0,107140.0,0.06038]
[1761850508473,0.7415104,107150.0,107140.0,0.06038]
[1761850508777,1.1023104,107150.0,107140.0,0.06038]
[1761850508975,1.00621343,107150.0,107140.0,0.06138]
[1761850509175,1.2023104,107150.0,107140.0,0.06138]
[1761850509669,1.3022598,107150.0,107140.0,0.06138]
[1761850510071,1.2023104,107150.0,107140.0,0.06138]
[1761850510673,1.2023104,107150.0,107140.0,0.25747697]
[1761850511776,1.2023104,107150.0,107140.0,0.06138]
[1761850513277,1.2023104,107150.0,107140.0,0.03868]
[1761850513479,1.2023104,107150.0,107140.0,0.06138]
[1761850515077,1.39840737,107150.0,107140.0,0.002]
[1761850515383,1.52340732,107150.0,107140.0,0.002]
[1761850516084,1.52340732,107150.0,107120.0,0.05978]
[1761850516085,1.52620732,107150.0,107120.0,0.05978]
[1761850516278,0.19609697,107130.0,107120.0,0.05978]
[1761850516579,0.62304,107130.0,107120.0,0.05978]
[1761850516784,0.81913697,107130.0,107120.0,0.05978]
[1761850516980,0.81913697,107130.0,107120.0,0.25587697]
[1761850517684,0.81913697,107130.0,107120.0,0.25687697]
[1761850517983,0.81913697,107130.0,107120.0,0.25787697]
[1761850518182,0.89221469,107130.0,107120.0,0.25787697]
[1761850518782,0.89221469,107130.0,107120.0,0.06178]
[1761850518978,1.25301469,107130.0,107120.0,0.06178]
[1761850519876,1.25301469,107130.0,107120.0,0.01529]
[1761850520070,1.47148076,107130.0,107120.0,0.002]
[1761850520784,2.07148076,107130.0,107120.0,0.002]
[1761850520986,2.17143016,107130.0,107120.0,0.002]
[1761850523284,1.77923622,107130.0,107120.0,0.002]
[1761850523481,2.17143016,107130.0,107120.0,0.03838]
[1761850523989,2.07148076,107130.0,107120.0,0.03838]
[1761850524181,1.27542379,107130.0,107120.0,0.06163]
[1761850524383,1.27542379,107130.0,107120.0,0.002]
[1761850524680,1.27542379,107130.0,107120.0,0.06106]
[1761850524878,1.37537319,107130.0,107120.0,0.002]
[1761850525187,1.37537319,107130.0,107120.0,0.06106]
[1761850525188,1.27542379,107130.0,107120.0,0.06106]
[1761850526577,1.37537319,107130.0,107120.0,0.002]
[1761850526785,1.27542379,107130.0,107120.0,0.002]
[1761850527781,1.47152076,107130.0,107120.0,0.002]
[1761850528790,1.57147016,107130.0,107120.0,0.002]
[1761850529594,1.57147016,107130.0,107100.0,0.42073]
[1761850529789,0.19609697,107110.0,107100.0,0.42073]
[1761850529989,0.61917697,107110.0,107100.0,0.42073]
[1761850530791,0.61917697,107110.0,107100.0,0.42473]
[1761850531987,0.61917697,107110.0,107100.0,0.42673]
[1761850532387,0.42308,107110.0,107100.0,0.42473]
[1761850532588,0.58329715,107110.0,107100.0,0.62282697]
[1761850533594,1.4425649,107110.0,107100.0,0.006]
[1761850534604,1.59036485,107110.0,107100.0,0.00240539]
[1761850534993,1.56756485,107110.0,107100.0,0.00240539]
[1761850535586,1.56756485,107110.0,107100.0,0.00040539]
[1761850536398,0.39219394,107090.0,107070.0,0.05865461]
[1761850536595,0.75299394,107080.0,107070.0,0.05865461]
[1761850536807,0.62926775,107080.0,107070.0,0.05865461]
[1761850537104,0.62926775,107080.0,107070.0,0.38177461]
[1761850537306,0.11830639,107080.0,107070.0,0.57787158]
[1761850537512,0.31440336,107080.0,107070.0,0.57787158]
[1761850538297,0.11830639,107080.0,107070.0,0.57787158]
[1761850538597,0.09830639,107080.0,107070.0,0.57787158]
[1761850538794,0.63440336,107080.0,107070.0,0.003]
[1761850538993,0.63440336,107080.0,107030.0,0.74306]
[1761850538994,0.04419,107040.0,107030.0,0.74306]
[1761850539195,0.2511718,107040.0,107030.0,0.07255828]
[1761850539401,0.33499273,107040.0,107030.0,0.03621828]
[1761850539609,0.5310897,107040.0,107030.0,0.07255828]
[1761850540205,0.13889576,107040.0,107030.0,0.07755828]
[1761850540505,0.54467465,107040.0,107030.0,0.01849828]
[1761850540711,0.51259982,107040.0,107030.0,0.06251093]
[1761850540909,0.55678982,107040.0,107030.0,0.06251093]
[1761850541410,0.16459588,107040.0,107030.0,0.06251093]
[1761850541807,1.06114506,107040.0,107030.0,0.06451093]
[1761850542007,0.79114506,107040.0,107030.0,0.01854093]
[1761850542310,0.79114506,107040.0,107030.0,0.06151093]
[1761850542511,0.79114506,107040.0,107030.0,0.06351093]
[1761850542810,0.75114506,107040.0,107030.0,0.06351093]
[1761850543002,0.15389588,107040.0,107030.0,0.42331093]
[1761850543203,0.13389588,107040.0,107030.0,0.42331093]
[1761850543913,0.13389588,107040.0,107030.0,0.43720093]
[1761850546009,0.13389588,107040.0,107030.0,0.75816256]
[1761850546813,0.03389588,107040.0,107030.0,0.75816256]
[1761850548807,0.04419,107050.0,107040.0,0.05906]
[1761850549001,0.06419,107050.0,107040.0,0.43368256]
[1761850549416,0.06419,107050.0,107040.0,0.39640256]
[1761850550010,0.04419,107050.0,107040.0,0.39640256]
[1761850550314,0.06419,107050.0,107040.0,0.39640256]
[1761850550614,0.0145379,107050.0,107040.0,0.39640256]
[1761850550910,0.04572,107050.0,107040.0,0.75706768]
[1761850551107,0.02572,107050.0,107040.0,0.75706768]
[1761850551308,0.04572,107050.0,107040.0,0.75706768]
[1761850551509,0.06719,107050.0,107040.0,0.75706768]
[1761850551707,0.08131171,107050.0,107040.0,0.75706768]
[1761850552311,0.01712171,107050.0,107040.0,0.75706768]
[1761850552610,0.00800677,107050.0,107040.0,1.35706768]
[1761850552819,0.40539,107070.0,107060.0,0.0574]
[1761850553120,0.69928,107070.0,107060.0,0.39452768]
[1761850553619,0.69928,107070.0,107060.0,0.38143768]
[1761850553813,1.05966187,107070.0,107060.0,0.38143768]
[1761850554117,1.06466187,107070.0,107060.0,0.38143768]
[1761850554520,1.13978277,107070.0,107060.0,0.38143768]
[1761850555015,0.7655109,107070.0,107060.0,0.39452768]
[1761850555416,0.7685109,107070.0,107060.0,0.39452768]
[1761850555604,0.7762309,107070.0,107060.0,0.33712768]
[1761850555804,0.79093355,107070.0,107060.0,0.33712768]
[1761850556314,0.81322725,107070.0,107060.0,0.03577768]
[1761850556721,0.81322725,107070.0,107060.0,0.33704768]
[1761850556928,1.17360912,107070.0,107060.0,0.01368768]
[1761850557220,1.27355852,107070.0,107060.0,0.01368768]
[1761850558420,1.17360912,107070.0,107060.0,0.01368768]
[1761850558918,1.06588912,107070.0,107060.0,0.07108768]
[1761850559415,0.70550725,107070.0,107060.0,0.07108768]
[1761850559715,0.70666725,107070.0,107060.0,0.07108768]
[1761850560513,0.70466725,107070.0,107060.0,0.07108768]
[1761850561217,0.11511725,107070.0,107060.0,0.07108768]
[1761850561411,0.04386265,107070.0,107060.0,0.4182]
[1761850561616,0.06620368,107070.0,107060.0,0.39439934]
[1761850562015,0.09120368,107070.0,107060.0,0.39439934]
[1761850562216,0.09304368,107070.0,107060.0,0.39439934]
[1761850562409,0.04004368,107070.0,107060.0,0.39719934]
[1761850562612,0.04204368,107070.0,107060.0,0.75799934]
[1761850562918,0.04204368,107070.0,107060.0,0.74176]
[1761850563111,0.04204368,107070.0,107060.0,0.74456]
[1761850563823,0.005,107070.0,107060.0,1.4379832]
[1761850564120,0.38624137,107090.0,107080.0,0.0574]
[1761850564320,0.40434389,107090.0,107080.0,0.38104]
[1761850564719,0.41813539,107090.0,107080.0,0.0574]
[1761850564914,0.05675539,107090.0,107080.0,0.38104]
[1761850565626,0.04075539,107090.0,107080.0,0.38104]
[1761850565811,0.04775539,107090.0,107080.0,0.38104]
[1761850566214,0.06775539,107090.0,107080.0,0.38104]
[1761850566512,0.46166496,107100.0,107080.0,0.38104]
[1761850566513,0.43058035,107100.0,107090.0,0.0574]
[1761850566710,0.14202496,107100.0,107090.0,0.0574]
[1761850567320,0.15674719,107100.0,107090.0,0.0574]
[1761850567626,0.46374719,107100.0,107090.0,0.0574]
[1761850568225,0.43888582,107100.0,107090.0,0.0574]
[1761850568727,0.79968582,107100.0,107090.0,0.0574]
[1761850568923,0.82754719,107100.0,107090.0,0.0574]
[1761850569312,0.50268582,107100.0,107090.0,0.0574]
[1761850569518,0.14188582,107100.0,107090.0,0.0574]
[1761850570218,0.14188582,107100.0,107090.0,0.4182]
[1761850570413,0.14188582,107100.0,107090.0,0.0574]
[1761850571121,0.41188582,107100.0,107090.0,0.0574]
[1761850571317,0.41188582,107100.0,107090.0,0.38096]
[1761850571720,1.13306769,107100.0,107090.0,0.38096]
[1761850571921,0.77268582,107100.0,107090.0,0.38096]
[1761850572128,1.45662769,107100.0,107090.0,0.0574]
[1761850574222,0.00116,107090.0,107070.0,0.37389]
[1761850574418,0.00116,107080.0,107070.0,0.4182]
[1761850574620,0.04116,107080.0,107070.0,0.4182]
[1761850575825,0.05116,107080.0,107070.0,0.4182]
[1761850576221,0.05216,107080.0,107070.0,0.4182]
[1761850576818,0.02216,107080.0,107070.0,0.4182]
[1761850577023,0.02216,107080.0,107070.0,0.0574]
[1761850577729,0.02416,107080.0,107070.0,0.0574]
[1761850578328,0.04644298,107080.0,107070.0,0.0574]
[1761850579322,0.97100298,107080.0,107070.0,0.0574]
[1761850579523,0.00116,107070.0,107060.0,0.05721]
[1761850579724,1.04720324,107070.0,107060.0,0.07072704]
[1761850580024,1.06948622,107070.0,107060.0,0.07072704]
[1761850580628,1.16943562,107070.0,107060.0,0.07072704]
[1761850580829,1.16953219,107070.0,107060.0,0.07072704]
[1761850581133,1.17233219,107070.0,107060.0,0.01351704]
[1761850581334,0.02242,107050.0,107040.0,0.39689592]
[1761850581640,1.12052414,107050.0,107040.0,0.04592]
[1761850581932,1.14279279,107050.0,107030.0,0.37426]
[1761850582133,0.04545,107040.0,107030.0,0.05938]
[1761850582322,0.08771865,107040.0,107030.0,0.05938]
[1761850582520,1.21260992,107040.0,107030.0,0.04592]
[1761850582722,1.46763279,107040.0,107030.0,0.05875]
[1761850583135,1.46763279,107040.0,107030.0,0.06175]
[1761850583429,0.72147865,107040.0,107030.0,0.06175]
[1761850584435,1.08227865,107040.0,107030.0,0.06475]
[1761850584632,1.08227865,107040.0,107030.0,0.06175]
[1761850584826,1.15612776,107040.0,107030.0,0.06475]
[1761850585334,1.51650963,107040.0,107030.0,0.005]
[1761850585628,1.5414819,107040.0,107030.0,0.005]
[1761850586221,1.51650963,107040.0,107030.0,0.005]
[1761850586435,1.51650963,107040.0,107030.0,0.0276]
[1761850586637,1.61645903,107040.0,107030.0,0.0276]
[1761850586825,1.61645903,107040.0,107030.0,0.005]
[1761850587234,1.59419038,107040.0,107030.0,0.005]
[1761850587735,1.27043038,107040.0,107030.0,0.005]
[1761850587933,0.04545,107010.0,107000.0,0.41955]
[1761850588133,0.04545,107010.0,107000.0,0.74383]
[1761850588636,0.30583187,107020.0,107010.0,0.05815]
[1761850588932,0.33,107020.0,107010.0,0.38247]
[1761850589143,0.33,107020.0,107010.0,0.38243]
[1761850590631,0.6908,107020.0,107010.0,0.38243]
[1761850591130,0.34415651,107020.0,107010.0,0.38243]
[1761850591334,1.06533838,107020.0,107010.0,0.06315]
[1761850591637,1.16528778,107020.0,107010.0,0.01761]
[1761850591838,1.76808778,107020.0,107010.0,0.3294]
[1761850592036,1.76528778,107020.0,107010.0,0.3294]
[1761850592333,1.76528778,107020.0,107010.0,0.3334]
[1761850592837,1.76528778,107020.0,107010.0,0.3324]
[1761850593039,1.76528778,107020.0,107010.0,0.34401]
[1761850593231,1.76528778,107020.0,107010.0,0.3314]
[1761850593536,1.76528778,107020.0,107010.0,0.3304]
[1761850593833,1.76528778,107020.0,107010.0,0.33901]
[1761850594038,1.76528778,107020.0,107010.0,0.01661]
[1761850596741,1.16528778,107020.0,107010.0,0.01661]
[1761850597039,1.06533838,107020.0,107010.0,0.03973]
[1761850597934,1.16528778,107020.0,107010.0,0.03973]
[1761850598430,0.03408,107000.0,106990.0,0.03595]
[1761850598639,0.03408,106990.0,106980.0,0.04554]
[1761850598837,0.49488,106990.0,106980.0,0.38255]
[1761850599136,0.68488,106990.0,106980.0,0.38255]
[1761850599335,0.6508,106990.0,106980.0,0.05815]
[1761850599726,0.48571,106990.0,106980.0,0.38255]
[1761850600134,0.48571,106990.0,106980.0,0.05815]
[1761850600438,0.12491,106990.0,106980.0,0.38267]
[1761850600634,0.45571,106990.0,106980.0,0.05815]
[1761850600839,0.74571,106990.0,106980.0,0.38267]
[1761850601042,0.4608,106990.0,106980.0,0.38267]
[1761850601236,0.6408,106990.0,106980.0,0.38367]
[1761850601944,0.4608,106990.0,106980.0,0.38367]
[1761850602741,0.1,106990.0,106980.0,0.38367]
[1761850603536,0.4608,106990.0,106980.0,0.05915]